Workbook

Sheet Sheet1
A1: Product Name -- 2026 B2Gnow Price List | B1: Product Division | C1: Product Code | D1: 2026 MSRP Price | E1: 2026 MSRP Price | F1: Product Discount | G1: 2026 Discount Price | H1: 2026 Discount Price | I1: Product Family | J1: Product Billing Type | K1: Product Category | L1: Product Details and Capacity Tiers
A2: 1391/1392 Reporting Module - Annual Combined Fee | B2: B2G | C2: B2G-CMB-1391 | D2: $10,120.95 | E2: =ROUNDUP(D2,0) -> $10,121.00 | F2: 15% | G2: $8,602.81 | H2: =ROUNDUP(G2,0) -> $8,603.00 | I2: Combined Recurring | J2: Yearly | K2: Module | L2: Capacity up to 200 reports per year
A3: 1391/1392 Reporting Module - Annual Service Fee | B3: B2G | C3: B2G-SW-1391 | D3: $7,573.65 | E3: $7,574.00 | F3: 15% | G3: $6,437.60 | H3: $6,438.00 | I3: Service Fees Recurring | J3: Yearly | K3: Module | L3: Capacity up to 200 reports per year
A4: 1391/1392 Reporting Module - One-time Configuration | B4: B2G | C4: B2G-IMP-1391 | D4: $7,573.65 | E4: $7,574.00 | F4: 15% | G4: $6,437.60 | H4: $6,438.00 | I4: Implementation One-time | J4: One Time | K4: Module
A5: Additional Module Capacity | B5: B2G | C5: B2G-CMB-ADC | D5: $7,573.65 | E5: $7,574.00 | F5: 15% | G5: $6,437.60 | H5: $6,438.00 | I5: Combined Recurring | J5: Yearly | K5: Module | L5: Module details in the applicable line descriptions
A6: Advanced Organizational Management - Annual Combined Fee | B6: B2G | C6: B2G-CMB-AOM | D6: $10,120.95 | E6: $10,121.00 | F6: 15% | G6: $8,602.81 | H6: $8,603.00 | I6: Combined Recurring | J6: Yearly | K6: Module
A7: Advanced Organizational Management - Annual Service Fee | B7: B2G | C7: B2G-SW-AOM | D7: $7,573.65 | E7: $7,574.00 | F7: 15% | G7: $6,437.60 | H7: $6,438.00 | I7: Service Fees Recurring | J7: Yearly | K7: Module
A8: Advanced Organizational Management - One Time Configuration | B8: B2G | C8: B2G-IMP-AOM | D8: $7,573.65 | E8: $7,574.00 | F8: 15% | G8: $6,437.60 | H8: $6,438.00 | I8: Implementation One-time | J8: One Time | K8: Module
A9: B2G Partner PPT Tiered Core - Annual Service Fee (up to 250M) | B9: B2G | C9: B2G-PRT-COR | D9: $8,290.80 | E9: $8,291.00 | F9: 15% | G9: $7,047.18 | H9: $7,048.00 | I9: Service Fees Recurring | J9: Yearly | K9: Module | L9: Capacity up to $250 million in construction value - adjust as needed; Must be B2Gnow-approved partner
A10: B2G Partner PPT Tiered Core+CUF - Annual Service Fee (up to 250M) | B10: B2G | C10: B2G-PRT-CO1 | D10: $16,582.65 | E10: $16,583.00 | F10: 15% | G10: $14,095.25 | H10: $14,096.00 | I10: Service Fees Recurring | J10: Yearly | K10: Module | L10: Capacity up to $250 million in construction value - adjust as needed; Must be B2Gnow-approved partner
A11: Baseline LCP Add - Annual Combined Fee | B11: B2G | C11: B2G-CMB-BLA | D11: $3,185.70 | E11: $3,186.00 | F11: 15% | G11: $2,707.85 | H11: $2,708.00 | I11: Combined Recurring | J11: Yearly | K11: Module
A12: Baseline Vendor Management - Annual Combined Fee | B12: B2G | C12: B2G-CMB-BL | D12: $10,120.95 | E12: $10,121.00 | F12: 15% | G12: $8,602.81 | H12: $8,603.00 | I12: Combined Recurring | J12: Yearly | K12: Module
A13: Baseline Vendor Management - Annual Service Fee | B13: B2G | C13: B2G-SW-BL | D13: $7,573.65 | E13: $7,574.00 | F13: 15% | G13: $6,437.60 | H13: $6,438.00 | I13: Service Fees Recurring | J13: Yearly | K13: Module
A14: Baseline Vendor Management - One-time Configuration | B14: B2G | C14: B2G-IMP-BL | D14: $7,573.65 | E14: $7,574.00 | F14: 15% | G14: $6,437.60 | H14: $6,438.00 | I14: Implementation One-time | J14: One Time | K14: Module
A15: Bid Management (all bid functions) - Annual Combined Fee | B15: B2G | C15: B2G-CMB-BDM | D15: $16,493.40 | E15: $16,494.00 | F15: 15% | G15: $14,019.39 | H15: $14,020.00 | I15: Combined Recurring | J15: Yearly | K15: Module | L15: Full bid management - bid posting, bid tracking, and online bidding. Includes up to 100 bidding processes annually
A16: Bid Management (all bid functions) - Annual Service Fee | B16: B2G | C16: B2G-SW-BDM | D16: $12,667.20 | E16: $12,668.00 | F16: 15% | G16: $10,767.12 | H16: $10,768.00 | I16: Service Fees Recurring | J16: Yearly | K16: Module | L16: Full bid management - bid posting, bid tracking, and online bidding. Includes up to 100 bidding processes annually
A17: Bid Management (all bid functions) - One-time Configuration | B17: B2G | C17: B2G-IMP-BDM | D17: $7,573.65 | E17: $7,574.00 | F17: 15% | G17: $6,437.60 | H17: $6,438.00 | I17: Implementation One-time | J17: One Time | K17: Module | L17: This is full bid management - bid posting, bid tracking, and online bidding. Includes up to 100 bidding processes annually
A18: Bid Posting - Annual Combined Fee | B18: B2G | C18: B2G-CMB-BDP | D18: $10,120.95 | E18: $10,121.00 | F18: 15% | G18: $8,602.81 | H18: $8,603.00 | I18: Combined Recurring | J18: Yearly | K18: Module | L18: Includes up to 100 bidding processes annually
A19: Bid Posting - Annual Service Fee | B19: B2G | C19: B2G-SW-BDP | D19: $7,573.65 | E19: $7,574.00 | F19: 15% | G19: $6,437.60 | H19: $6,438.00 | I19: Service Fees Recurring | J19: Yearly | K19: Module | L19: Includes up to 100 bidding processes annually
A20: Bid Posting - One-time Configuration | B20: B2G | C20: B2G-IMP-BDP | D20: $7,573.65 | E20: $7,574.00 | F20: 15% | G20: $6,437.60 | H20: $6,438.00 | I20: Implementation One-time | J20: One Time | K20: Module | L20: Includes up to 100 bidding processes annually
A21: Bidding Module - Annual Combined Fee | B21: B2G | C21: B2G-CMB-BDG | D21: $10,120.95 | E21: $10,121.00 | F21: 15% | G21: $8,602.81 | H21: $8,603.00 | I21: Combined Recurring | J21: Yearly | K21: Module | L21: Includes up to 100 bidding processes annually
A22: Bidding Module - Annual Service Fee | B22: B2G | C22: B2G-SW-BDG | D22: $7,573.65 | E22: $7,574.00 | F22: 15% | G22: $6,437.60 | H22: $6,438.00 | I22: Service Fees Recurring | J22: Yearly | K22: Module | L22: Includes up to 100 bidding processes annually
A23: Bidding Module - One-time Configuration | B23: B2G | C23: B2G-IMP-BDG | D23: $7,573.65 | E23: $7,574.00 | F23: 15% | G23: $6,437.60 | H23: $6,438.00 | I23: Implementation One-time | J23: One Time | K23: Module | L23: Includes up to 100 bidding processes annually
A24: Bid Tracking Module - Annual Combined Fee | B24: B2G | C24: B2G-CMB-BDT | D24: $10,120.95 | E24: $10,121.00 | F24: 15% | G24: $8,602.81 | H24: $8,603.00 | I24: Combined Recurring | J24: Yearly | K24: Module | L24: Includes up to 100 bidding processes annually
A25: Bid Tracking Module - Annual Service Fee | B25: B2G | C25: B2G-SW-BDT | D25: $7,573.65 | E25: $7,574.00 | F25: 15% | G25: $6,437.60 | H25: $6,438.00 | I25: Service Fees Recurring | J25: Yearly | K25: Module | L25: Includes up to 100 bidding processes annually
A26: Bid Tracking Module - One-time Configuration | B26: B2G | C26: B2G-IMP-BDT | D26: $7,573.65 | E26: $7,574.00 | F26: 15% | G26: $6,437.60 | H26: $6,438.00 | I26: Implementation One-time | J26: One Time | K26: Module | L26: Includes up to 100 bidding processes annually
A27: Certification Management Module - Annual Combined Fee | B27: B2G | C27: B2G-CMB-CER | D27: $12,667.20 | E27: $12,668.00 | F27: 15% | G27: $10,767.12 | H27: $10,768.00 | I27: Combined Recurring | J27: Yearly | K27: Module | L27: Capacity 200 - Unique firms with at least one certification active in the invoiced year
A28: Certification Management Module - Annual Service Fee | B28: B2G | C28: B2G-SW-CER | D28: $7,573.65 | E28: $7,574.00 | F28: 15% | G28: $6,437.60 | H28: $6,438.00 | I28: Service Fees Recurring | J28: Yearly | K28: Module | L28: Capacity 200 - Unique firms with at least one certification active in the invoiced year
A29: Certification Management Module - One-time Configuration | B29: B2G | C29: B2G-IMP-CER | D29: $15,148.35 | E29: $15,149.00 | F29: 15% | G29: $12,876.10 | H29: $12,877.00 | I29: Implementation One-time | J29: One Time | K29: Module
A30: Certified Directory - Tracking Record Functionality | B30: B2G | C30: B2G-CMB-DRT | D30: $1,267.35 | E30: $1,268.00 | F30: 15% | G30: $1,077.25 | H30: $1,078.00 | I30: Combined Recurring | J30: Yearly | K30: Module | L30: Tracking record functionality for directory reference internally
A31: Certified Directory Connection - Annual Service Fee | B31: B2G | C31: B2G-SW-DRE | D31: $1,267.35 | E31: $1,268.00 | F31: 15% | G31: $1,077.25 | H31: $1,078.00 | I31: Service Fees Recurring | J31: Yearly | K31: Module | L31: Base price for one directory; note directory units, regional or national details; Some directories (SAM) may be higher
A32: Certified Directory Connection (new/one-off) - Annual Combined Fee | B32: B2G | C32: B2G-CMB-DRO | D32: $6,306.30 | E32: $6,307.00 | F32: 15% | G32: $5,360.36 | H32: $5,361.00 | I32: Combined Recurring | J32: Yearly | K32: Module | L32: These are certified directories we do not currently have - but ones that do NOT have re-use potential. Can be membership or non-membership
A33: Compliance Support-Outreach (per month-Y1 only) | B33: B2G | C33: B2G-SRV-CSM | D33: $2,656.50 | E33: $2,657.00 | F33: 15% | G33: $2,258.03 | H33: $2,259.00 | I33: Implementation One-time | J33: Monthly | K33: Service | L33: These support and outreach services are monthly rate billed - and do not extend past the end of Y1 of the contract execution (or renewal) for such services
A34: Concession Compliance Module - Annual Service Fee | B34: B2G | C34: B2G-SW-CNC | D34: $7,573.65 | E34: $7,574.00 | F34: 15% | G34: $6,437.60 | H34: $6,438.00 | I34: Service Fees Recurring | J34: Yearly | K34: Module | L34: Capacity up to 100 locations
A35: Concession Compliance Module - Annual Combined Fee | B35: B2G | C35: B2G-CMB-CNC | D35: $10,120.95 | E35: $10,121.00 | F35: 15% | G35: $8,602.81 | H35: $8,603.00 | I35: Combined Recurring | J35: Yearly | K35: Module | L35: Capacity up to 100 locations
A36: Concession Compliance Module - One-time Configuration | B36: B2G | C36: B2G-IMP-CNC | D36: $7,573.65 | E36: $7,574.00 | F36: 15% | G36: $6,437.60 | H36: $6,438.00 | I36: Implementation One-time | J36: One Time | K36: Module
A37: Consulting Non-Recurring Annual | B37: B2G | C37: B2G-IMP-CAN | D37: $22,920.45 | E37: $22,921.00 | F37: 15% | G37: $19,482.38 | H37: $19,483.00 | I37: Implementation One-time | J37: Yearly | K37: Service | L37: Consulting services contracted for only Y1 of the contract period - must not recur past the Y1 term
A38: Consulting Non-Recurring Monthly | B38: B2G | C38: B2G-IMP-CMN | D38: $6,372.45 | E38: $6,373.00 | F38: 15% | G38: $5,416.58 | H38: $5,417.00 | I38: Implementation One-time | J38: Monthly | K38: Service | L38: Monthly consulting services contracted for only months of Y1 of the contract period - must not recur past the Y1 term
A39: Consulting Recurring Annual | B39: B2G | C39: B2G-CON-ANR | D39: $22,920.45 | E39: $22,921.00 | F39: 15% | G39: $19,482.38 | H39: $19,483.00 | I39: Consulting Recurring | J39: Yearly | K39: Service | L39: Consulting services contracted for Y1 and beyond Y1 of contract period - must recur past the Y1 term
A40: Consulting Recurring Monthly | B40: B2G | C40: B2G-CON-MOR | D40: $1,906.80 | E40: $1,907.00 | F40: 15% | G40: $1,620.78 | H40: $1,621.00 | I40: Consulting Recurring | J40: Monthly | K40: Service
A41: Contract Compliance Module - Annual Combined Fee | B41: B2G | C41: B2G-CMB-CON | D41: $10,120.95 | E41: $10,121.00 | F41: 15% | G41: $8,602.81 | H41: $8,603.00 | I41: Combined Recurring | J41: Yearly | K41: Module | L41: Capacity up to 200 monitored contracts
A42: Contract Compliance Module - Annual Service Fee | B42: B2G | C42: B2G-SW-CON | D42: $7,573.65 | E42: $7,574.00 | F42: 15% | G42: $6,437.60 | H42: $6,438.00 | I42: Service Fees Recurring | J42: Yearly | K42: Module | L42: Capacity up to 200 monitored contracts
A43: Contract Compliance Module - One-time Configuration | B43: B2G | C43: B2G-IMP-CON | D43: $7,573.65 | E43: $7,574.00 | F43: 15% | G43: $6,437.60 | H43: $6,438.00 | I43: Implementation One-time | J43: One Time | K43: Module
A44: Custom Development - new features, custom reports | B44: B2G | C44: B2G-SRV-DEV | D44: $231.00 | E44: $231.00 | F44: 15% | G44: $196.35 | H44: $197.00 | I44: Implementation One-time | J44: Hourly | K44: Service
A45: Data Enrichment - One-time Service | B45: B2G | C45: B2G-SRV-ENR | D45: $12,733.35 | E45: $12,734.00 | F45: 15% | G45: $10,823.35 | H45: $10,824.00 | I45: Implementation One-time | J45: One Time | K45: Service
A46: Data Enrichment - Recurring | B46: B2G | C46: B2G-SW-ENR | D46: $12,667.20 | E46: $12,668.00 | F46: 15% | G46: $10,767.12 | H46: $10,768.00 | I46: Service Fees Recurring | J46: Yearly | K46: Module | L46: Provides system access to the enrichment data and historical records; data upload monthly into system
A47: Data Entry Services (per hour) | B47: B2G | C47: B2G-SRV-DES | D47: $110.25 | E47: $111.00 | F47: 15% | G47: $93.71 | H47: $94.00 | I47: Implementation One-time | J47: Hourly | K47: Service
A48: Data Integration Services (per hour) | B48: B2G | C48: B2G-SRV-DIS | D48: $231.00 | E48: $231.00 | F48: 15% | G48: $196.35 | H48: $197.00 | I48: Implementation One-time | J48: Hourly | K48: Service
A49: Data Integration Services (per month-Y1 only) | B49: B2G | C49: B2G-SRV-DIM | D49: $1,058.40 | E49: $1,059.00 | F49: 15% | G49: $899.64 | H49: $900.00 | I49: Implementation One-time | J49: Monthly | K49: Service | L49: These data integration services are monthly rate billed - and do not extend past the end of Y1 of the contract execution
A50: Data Migration - One-time Migration for 500 records | B50: B2G | C50: B2G-IMP-MIG | D50: $6,372.45 | E50: $6,373.00 | F50: 15% | G50: $5,416.58 | H50: $5,417.00 | I50: Implementation One-time | J50: One Time | K50: Service | L50: Migration of 500 records
A51: Data Migration with ongoing Maintenance and Support - Annual Combined Fee | B51: B2G | C51: B2G-CMB-DMC | D51: $2,480.10 | E51: $2,481.00 | F51: 15% | G51: $2,108.09 | H51: $2,109.00 | I51: Combined Recurring | J51: Yearly | K51: Module | L51: Active certified vendors up to 2500 records
A52: DBE Direct Product Suite | B52: B2G | C52: B2G-CMB-DBD | D52: $19,789.35 | E52: $19,790.00 | F52: 15% | G52: $16,820.95 | H52: $16,821.00 | I52: Combined Recurring | J52: Yearly | K52: Module | L52: Standard DBE Direct Suite - Modules (Baseline, CC, OR, CUF), Directories (up to 3 incl UCP), Streamlined Implement
A53: Disparity Study Data Collection Module - Combined Service Fee | B53: B2G | C53: B2G-CMB-DSP | D53: $10,120.95 | E53: $10,121.00 | F53: 15% | G53: $8,602.81 | H53: $8,603.00 | I53: Combined Recurring | J53: Yearly | K53: Module
A54: Disparity Study Data Collection Module - Annual Service Fee | B54: B2G | C54: B2G-SW-DSP | D54: $7,573.65 | E54: $7,574.00 | F54: 15% | G54: $6,437.60 | H54: $6,438.00 | I54: Service Fees Recurring | J54: Yearly | K54: Module
A55: Disparity Study Data Collection Module - One-time Configuration | B55: B2G | C55: B2G-IMP-DSP | D55: $7,573.65 | E55: $7,574.00 | F55: 15% | G55: $6,437.60 | H55: $6,438.00 | I55: Implementation One-time | J55: One Time | K55: Module
A56: External System Export Interface - Annual Combined Fee | B56: B2G | C56: B2G-CMB-EXP | D56: $6,306.30 | E56: $6,307.00 | F56: 15% | G56: $5,360.36 | H56: $5,361.00 | I56: Combined Recurring | J56: Yearly | K56: Module
A57: External System Export Interface - Annual Service Fee | B57: B2G | C57: B2G-SW-EXP | D57: $4,200.00 | E57: $4,200.00 | F57: 15% | G57: $3,570.00 | H57: $3,570.00 | I57: Service Fees Recurring | J57: Yearly | K57: Module
A58: External System Export Interface - One-time Configuration | B58: B2G | C58: B2G-IMP-EXP | D58: $4,200.00 | E58: $4,200.00 | F58: 15% | G58: $3,570.00 | H58: $3,570.00 | I58: Implementation One-time | J58: One Time | K58: Module
A59: External System Import Interface - Annual Combined Fee | B59: B2G | C59: B2G-CMB-IMP | D59: $6,306.30 | E59: $6,307.00 | F59: 15% | G59: $5,360.36 | H59: $5,361.00 | I59: Combined Recurring | J59: Yearly | K59: Module
A60: External System Import Interface - Annual Service Fee | B60: B2G | C60: B2G-SW-IMP | D60: $4,200.00 | E60: $4,200.00 | F60: 15% | G60: $3,570.00 | H60: $3,570.00 | I60: Service Fees Recurring | J60: Yearly | K60: Module
A61: External System Import Interface - One-time Configuration | B61: B2G | C61: B2G-IMP-IMP | D61: $4,200.00 | E61: $4,200.00 | F61: 15% | G61: $3,570.00 | H61: $3,570.00 | I61: Implementation One-time | J61: One Time | K61: Module
A62: Fair Source | B62: B2G | C62: B2G-CMB-FS | D62: $9,095.10 | E62: $9,096.00 | F62: 15% | G62: $7,730.84 | H62: $7,731.00 | I62: Implementation One-time | J62: Yearly | K62: Module | L62: Base price - 1 State and 50 opportunities/year: adjust to match contracted capacities; add details for specific price parameters
A63: General Contractor (GC) Contract Sync Module - Annual Combined Fee | B63: B2G | C63: B2G-CMB-GCS | D63: $10,120.95 | E63: $10,121.00 | F63: 15% | G63: $8,602.81 | H63: $8,603.00 | I63: Combined Recurring | J63: Yearly | K63: Module | L63: Capacity up to 200 synced contracts
A64: Goal Plan Module - Annual Combined Fee | B64: B2G | C64: B2G-CMB-GOP | D64: $12,667.20 | E64: $12,668.00 | F64: 15% | G64: $10,767.12 | H64: $10,768.00 | I64: Combined Recurring | J64: Yearly | K64: Module | L64: Capacity up to 25 agencies
A65: Goal Setting Module (Disparity Study Data) - Annual Combined Fee | B65: B2G | C65: B2G-CMB-GOL | D65: $10,120.95 | E65: $10,121.00 | F65: 15% | G65: $8,602.81 | H65: $8,603.00 | I65: Combined Recurring | J65: Yearly | K65: Module | L65: Capacity up to 200 contract goals
A66: Goal Setting Module (Disparity Study Data) - Annual Service Fee | B66: B2G | C66: B2G-SW-GOL | D66: $7,573.65 | E66: $7,574.00 | F66: 15% | G66: $6,437.60 | H66: $6,438.00 | I66: Service Fees Recurring | J66: Yearly | K66: Module | L66: Capacity up to 200 contract goals
A67: Goal Setting Module (Disparity Study Data) - One-time Configuration | B67: B2G | C67: B2G-IMP-GOL | D67: $7,573.65 | E67: $7,574.00 | F67: 15% | G67: $6,437.60 | H67: $6,438.00 | I67: Implementation One-time | J67: One Time | K67: Module
A68: Goal Setting Module (Directory Availability Calculation) - Annual Combined Fee | B68: B2G | C68: B2G-CMB-GLD | D68: $10,120.95 | E68: $10,121.00 | F68: 15% | G68: $8,602.81 | H68: $8,603.00 | I68: Combined Recurring | J68: Yearly | K68: Module | L68: Capacity up to 200 contract goals
A69: Goal Setting Module (Directory Availability Calculation) - Annual Service Fee | B69: B2G | C69: B2G-SW-GLD | D69: $7,573.65 | E69: $7,574.00 | F69: 15% | G69: $6,437.60 | H69: $6,438.00 | I69: Service Fees Recurring | J69: Yearly | K69: Module | L69: Capacity up to 200 contract goals
A70: Goal Setting Module (Directory Availability Calculation) - One-time Configuration | B70: B2G | C70: B2G-IMP-GLD | D70: $7,573.65 | E70: $7,574.00 | F70: 15% | G70: $6,437.60 | H70: $6,438.00 | I70: Implementation One-time | J70: One Time | K70: Module
A71: Hire Module - Annual Combined Fee | B71: B2G | C71: B2G-CMB-HIR | D71: $10,120.95 | E71: $10,121.00 | F71: 15% | G71: $8,602.81 | H71: $8,603.00 | I71: Combined Recurring | J71: Yearly | K71: Module | L71: Capacity up to 200 postings per year
A72: Hire Module - Annual Service Fee | B72: B2G | C72: B2G-SW-HIR | D72: $7,573.65 | E72: $7,574.00 | F72: 15% | G72: $6,437.60 | H72: $6,438.00 | I72: Service Fees Recurring | J72: Yearly | K72: Module | L72: Capacity up to 200 postings per year
A73: Hire Module - One-time Configuration | B73: B2G | C73: B2G-IMP-HIR | D73: $7,573.65 | E73: $7,574.00 | F73: 15% | G73: $6,437.60 | H73: $6,438.00 | I73: Implementation One-time | J73: One Time | K73: Module | L73: Standard Hire Module Implementation Fee
A74: Inbound Fax Service - Annual Service Fee | B74: B2G | C74: B2G-SW-IFX | D74: $7,573.65 | E74: $7,574.00 | F74: 15% | G74: $6,437.60 | H74: $6,438.00 | I74: Service Fees Recurring | J74: Yearly | K74: Module | L74: Applies only to online app module
A75: Insurance Management Module - Annual Combined Fee | B75: B2G | C75: B2G-CMB-INS | D75: $10,120.95 | E75: $10,121.00 | F75: 15% | G75: $8,602.81 | H75: $8,603.00 | I75: Combined Recurring | J75: Yearly | K75: Module | L75: Capacity up to 200 risk certificates
A76: Insurance Management Module - Annual Service Fee | B76: B2G | C76: B2G-SW-INS | D76: $7,573.65 | E76: $7,574.00 | F76: 15% | G76: $6,437.60 | H76: $6,438.00 | I76: Service Fees Recurring | J76: Yearly | K76: Module | L76: Capacity up to 200 risk certificates
A77: Insurance Management Module - One-time Configuration | B77: B2G | C77: B2G-IMP-INS | D77: $7,573.65 | E77: $7,574.00 | F77: 15% | G77: $6,437.60 | H77: $6,438.00 | I77: Implementation One-time | J77: One Time | K77: Module
A78: Member Portal - Annual Combined Fee | B78: B2G | C78: B2G-CMB-MBP | D78: $10,120.95 | E78: $10,121.00 | F78: 15% | G78: $8,602.81 | H78: $8,603.00 | I78: Combined Recurring | J78: Yearly | K78: Module | L78: Capacity up to 200 active member organizations
A79: Member Portal - Annual Service Fee | B79: B2G | C79: B2G-SW-MBP | D79: $7,573.65 | E79: $7,574.00 | F79: 15% | G79: $6,437.60 | H79: $6,438.00 | I79: Service Fees Recurring | J79: Yearly | K79: Module | L79: Capacity up to 200 active member organizations
A80: Member Portal - One-time Configuration | B80: B2G | C80: B2G-IMP-MBP | D80: $7,573.65 | E80: $7,574.00 | F80: 15% | G80: $6,437.60 | H80: $6,438.00 | I80: Implementation One-time | J80: One Time | K80: Service | L80: 200 active member organizations
A81: OJT - Contract Compliance - Annual Combined Fee | B81: B2G | C81: B2G-CMB-OJC | D81: $21,586.95 | E81: $21,587.00 | F81: 15% | G81: $18,348.91 | H81: $18,349.00 | I81: Combined Recurring | J81: Yearly | K81: Module | L81: On The Job Training Module within Contract Compliance.
A82: OJT - Contract Compliance - Annual Service Fee | B82: B2G | C82: B2G-SW-OJC | D82: $17,760.75 | E82: $17,761.00 | F82: 15% | G82: $15,096.64 | H82: $15,097.00 | I82: Combined Recurring | J82: Yearly | K82: Module | L82: On The Job Training Module within Contract Compliance.
A83: OJT - Contract Compliance - One-time Configuration | B83: B2G | C83: B2G-IMP-OJC | D83: $12,667.20 | E83: $12,668.00 | F83: 15% | G83: $10,767.12 | H83: $10,768.00 | I83: Combined Recurring | J83: Yearly | K83: Module | L83: On The Job Training Module within Contract Compliance.
A84: Online Application Management Module - Annual Combined Fee | B84: B2G | C84: B2G-CMB-APP | D84: $12,667.20 | E84: $12,668.00 | F84: 15% | G84: $10,767.12 | H84: $10,768.00 | I84: Combined Recurring | J84: Yearly | K84: Module | L84: Capacity 200 - Unique firms that filed at least one "application" in the invoiced year - includes all app types
A85: Online Application Management Module - Annual Service Fee | B85: B2G | C85: B2G-SW-APP | D85: $7,573.65 | E85: $7,574.00 | F85: 15% | G85: $6,437.60 | H85: $6,438.00 | I85: Service Fees Recurring | J85: Yearly | K85: Module | L85: Capacity 200 - Unique firms that filed at least one "application" in the invoiced year - includes all app types
A86: Online Application Management Module - One-time Configuration | B86: B2G | C86: B2G-IMP-APP | D86: $15,148.35 | E86: $15,149.00 | F86: 15% | G86: $12,876.10 | H86: $12,877.00 | I86: Implementation One-time | J86: One Time | K86: Module
A87: Online Vendor Registration/Questionnaire Module - Annual Combined Fee | B87: B2G | C87: B2G-CMB-REG | D87: $12,667.20 | E87: $12,668.00 | F87: 15% | G87: $10,767.12 | H87: $10,768.00 | I87: Combined Recurring | J87: Yearly | K87: Module | L87: Capacity up to 200 registrations
A88: Online Vendor Registration/Questionnaire Module - Annual Service Fee | B88: B2G | C88: B2G-SW-REG | D88: $7,573.65 | E88: $7,574.00 | F88: 15% | G88: $6,437.60 | H88: $6,438.00 | I88: Service Fees Recurring | J88: Yearly | K88: Module | L88: Capacity up to 200 registrations
A89: Online Vendor Registration/Questionnaire Module - One-time Configuration | B89: B2G | C89: B2G-IMP-REG | D89: $15,148.35 | E89: $15,149.00 | F89: 15% | G89: $12,876.10 | H89: $12,877.00 | I89: Implementation One-time | J89: One Time | K89: Module
A90: Outbound Fax Service - Annual Service Fee | B90: B2G | C90: B2G-SW-OFX | D90: $7,573.65 | E90: $7,574.00 | F90: 15% | G90: $6,437.60 | H90: $6,438.00 | I90: Service Fees Recurring | J90: Yearly | K90: Module
A91: Outreach & Event Management Module - Annual Combined Fee | B91: B2G | C91: B2G-CMB-OUT | D91: $10,120.95 | E91: $10,121.00 | F91: 15% | G91: $8,602.81 | H91: $8,603.00 | I91: Combined Recurring | J91: Yearly | K91: Module | L91: Capacity up to 100 campaigns and/or events
A92: Outreach & Event Management Module - Annual Service Fee | B92: B2G | C92: B2G-SW-OUT | D92: $7,573.65 | E92: $7,574.00 | F92: 15% | G92: $6,437.60 | H92: $6,438.00 | I92: Service Fees Recurring | J92: Yearly | K92: Module | L92: Capacity up to 100 campaigns and/or events
A93: Outreach & Event Management Module - One-time Configuration | B93: B2G | C93: B2G-IMP-OUT | D93: $7,573.65 | E93: $7,574.00 | F93: 15% | G93: $6,437.60 | H93: $6,438.00 | I93: Implementation One-time | J93: One Time | K93: Module
A94: Payment Gateway Function - Existing-Standard | B94: B2G | C94: B2G-CMB-PGE | D94: $12,667.20 | E94: $12,668.00 | F94: 15% | G94: $10,767.12 | H94: $10,768.00 | I94: Combined Recurring | J94: Yearly | K94: Module | L94: Payment gateway - allows vendors to pay for items such as certification charges. This is for an existing gateway provider
A95: PNW Module - Annual Combined Fee | B95: B2G | C95: B2G-CMB-PNW | D95: $10,120.95 | E95: $10,121.00 | F95: 15% | G95: $8,602.81 | H95: $8,603.00 | I95: Combined Recurring | J95: Yearly | K95: Module | L95: Capacity up to 100 applicants
A96: PNW Module - Annual Service Fee | B96: B2G | C96: B2G-SW-PNW | D96: $7,573.65 | E96: $7,574.00 | F96: 15% | G96: $6,437.60 | H96: $6,438.00 | I96: Service Fees Recurring | J96: Yearly | K96: Module | L96: Capacity up to 100 applicants
A97: PNW Module - One-time Configuration | B97: B2G | C97: B2G-IMP-PNW | D97: $7,573.65 | E97: $7,574.00 | F97: 15% | G97: $6,437.60 | H97: $6,438.00 | I97: Implementation One-time | J97: One Time | K97: Module
A98: Power Analytics - Additional Creator Licenses | B98: B2G | C98: B2G-SW-PA | D98: $500.00 | E98: $500.00 | F98: 15% | G98: $425.00 | H98: $425.00 | I98: Service Fees Recurring | J98: Yearly | K98: Module | L98: Named User; Added to existing account
A99: Power Analytics - Standard Tier | B99: B2G | C99: B2G-CMB-PST | D99: Incl in Baseline | E99: Incl in Baseline | F99: Incl in Baseline | G99: Incl in Baseline | H99: Incl in Baseline | I99: Service Fees Recurring | J99: Yearly | K99: Module | L99: Access to Power BI reporting tool with standard datasets for active modules; includes one creator license and unlimited viewers (when available); Access to all standard/templated PBI reports for active modules; Access to instructor-led standard Power BI training and videos; Inlcuded in Baseline Vendor Management
A100: Power Analytics - Custom Reports Services (per hour) | B100: B2G | C100: B2G-SW-REP | D100: $231.00 | E100: $231.00 | F100: 15% | G100: $196.35 | H100: =ROUNDUP(G100,0) -> $197.00 | I100: Implementation One-time | J100: Hourly | K100: Service
A101: Program consultation and process analysis (per hour) | B101: B2G | C101: B2G-SRV-PRG | D101: $463.05 | E101: =ROUNDUP(D101,0) -> $464.00 | F101: 15% | G101: $393.59 | H101: $394.00 | I101: Implementation One-time | J101: Hourly | K101: Service
A102: Program Facilitation Module - Annual Combined Fee | B102: B2G | C102: B2G-CMB-PFM | D102: $10,120.95 | E102: $10,121.00 | F102: 15% | G102: $8,602.81 | H102: $8,603.00 | I102: Combined Recurring | J102: Yearly | K102: Module
A103: Program Facilitation Module - Annual Service Fee | B103: B2G | C103: B2G-SW-PFM | D103: $7,573.65 | E103: $7,574.00 | F103: 15% | G103: $6,437.60 | H103: $6,438.00 | I103: Service Fees Recurring | J103: Yearly | K103: Module
A104: Program Facilitation Module - One-time Configuration | B104: B2G | C104: B2G-IMP-PFM | D104: $7,573.65 | E104: $7,574.00 | F104: 15% | G104: $6,437.60 | H104: $6,438.00 | I104: Implementation One-time | J104: One Time | K104: Module
A105: Program Management Module - Annual Service Fee | B105: B2G | C105: B2G-SW-PRG | D105: $7,573.65 | E105: $7,574.00 | F105: 15% | G105: $6,437.60 | H105: $6,438.00 | I105: Service Fees Recurring | J105: Yearly | K105: Module
A106: Program Management Module - Combined Service Fee | B106: B2G | C106: B2G-CMB-PRG | D106: $10,120.95 | E106: $10,121.00 | F106: 15% | G106: $8,602.81 | H106: $8,603.00 | I106: Combined Recurring | J106: Yearly | K106: Module
A107: Program Management Module - One-time Configuration | B107: B2G | C107: B2G-IMP-PRG | D107: $7,573.65 | E107: $7,574.00 | F107: 15% | G107: $6,437.60 | H107: $6,438.00 | I107: Implementation One-time | J107: One Time | K107: Module
A108: Project Management Services - Beyond standard implementation (per hour) | B108: B2G | C108: B2G-SRV-PMS | D108: $231.00 | E108: $231.00 | F108: 15% | G108: $196.35 | H108: $197.00 | I108: Implementation One-time | J108: Hourly | K108: Module
A109: Projects Module - Annual Combined Fee | B109: B2G | C109: B2G-CMB-PJT | D109: $10,120.95 | E109: $10,121.00 | F109: 15% | G109: $8,602.81 | H109: $8,603.00 | I109: Combined Recurring | J109: Yearly | K109: Module | L109: Capacity up to 50 projects
A110: Projects Module - Annual Service Fee | B110: B2G | C110: B2G-SW-PJT | D110: $7,573.65 | E110: $7,574.00 | F110: 15% | G110: $6,437.60 | H110: $6,438.00 | I110: Service Fees Recurring | J110: Yearly | K110: Module | L110: Capacity up to 50 projects
A111: Projects Module - One-time Configuration | B111: B2G | C111: B2G-IMP-PJT | D111: $7,573.65 | E111: $7,574.00 | F111: 15% | G111: $6,437.60 | H111: $6,438.00 | I111: Implementation One-time | J111: One Time | K111: Module
A112: Public Dashboard Module - Annual Service Fee | B112: B2G | C112: B2G-SW-PUB | D112: $7,573.65 | E112: $7,574.00 | F112: 15% | G112: $6,437.60 | H112: $6,438.00 | I112: Service Fees Recurring | J112: Yearly | K112: Module
A113: Public Dashboard Module - Combined Service Fee | B113: B2G | C113: B2G-CMB-PUB | D113: $10,120.95 | E113: $10,121.00 | F113: 15% | G113: $8,602.81 | H113: $8,603.00 | I113: Combined Recurring | J113: Yearly | K113: Module | L113: Includes one report
A114: Public Dashboard Module (includes one public dashboard report) - One-time Configuration | B114: B2G | C114: B2G-IMP-PUB | D114: $7,573.65 | E114: $7,574.00 | F114: 15% | G114: $6,437.60 | H114: $6,438.00 | I114: Implementation One-time | J114: One Time | K114: Module
A115: Recipient Reporting Module - Annual Combined Fee | B115: B2G | C115: B2G-CMB-REC | D115: $10,120.95 | E115: $10,121.00 | F115: 15% | G115: $8,602.81 | H115: $8,603.00 | I115: Combined Recurring | J115: Yearly | K115: Module | L115: Capacity up to 50 recipients
A116: Recipient Reporting Module - Annual Service Fee | B116: B2G | C116: B2G-SW-REC | D116: $7,573.65 | E116: $7,574.00 | F116: 15% | G116: $6,437.60 | H116: $6,438.00 | I116: Service Fees Recurring | J116: Yearly | K116: Module | L116: Capacity up to 50 recipients
A117: Recipient Reporting Module - One-time Configuration | B117: B2G | C117: B2G-IMP-REC | D117: $7,573.65 | E117: $7,574.00 | F117: 15% | G117: $6,437.60 | H117: $6,438.00 | I117: Implementation One-time | J117: One Time | K117: Module
A118: Reviews Module - Annual Combined Fee | B118: B2G | C118: B2G-CMB-REV | D118: $10,120.95 | E118: $10,121.00 | F118: 15% | G118: $8,602.81 | H118: $8,603.00 | I118: Combined Recurring | J118: Yearly | K118: Module | L118: Capacity up to 1,000 reviews; Up to 1 non-vendor facing review form configured
A119: Reviews Module - Annual Service Fee | B119: B2G | C119: B2G-SW-REV | D119: $7,573.65 | E119: $7,574.00 | F119: 15% | G119: $6,437.60 | H119: $6,438.00 | I119: Service Fees Recurring | J119: Yearly | K119: Module | L119: Capacity up to 1,000 reviews; Up to 1 non-vendor facing review form configured
A120: Reviews Module - One-time Configuration | B120: B2G | C120: B2G-IMP-REV | D120: $7,573.65 | E120: $7,574.00 | F120: 15% | G120: $6,437.60 | H120: $6,438.00 | I120: Implementation One-time | J120: One Time | K120: Module
A121: Reviews Module Non-Vendor Facing Addl Form Capacity - Annual Service Fee | B121: B2G | C121: B2G-AF-RV1 | D121: $1,135.05 | E121: $1,136.00 | F121: 15% | G121: $964.79 | H121: $965.00 | I121: Service Fees Recurring | J121: Yearly | K121: Module | L121: Additional non-vendor facing review form; Does not add additional capacity
A122: Reviews Module Vendor Facing Addl Form Capacity - Annual Service Fee | B122: B2G | C122: B2G-AF-RV2 | D122: $1,703.10 | E122: $1,704.00 | F122: 15% | G122: $1,447.64 | H122: $1,448.00 | I122: Service Fees Recurring | J122: Yearly | K122: Module | L122: Additional vendor facing review form; Does not add additional capacity
A123: Sales Reporting Module - Annual Combined Fee | B123: B2G | C123: B2G-CMB-SAL | D123: $10,120.95 | E123: $10,121.00 | F123: 15% | G123: $8,602.81 | H123: $8,603.00 | I123: Combined Recurring | J123: Yearly | K123: Module | L123: Capacity up to 50 reporting vendors
A124: Sales Reporting Module - Annual Service Fee | B124: B2G | C124: B2G-SW-SAL | D124: $7,573.65 | E124: $7,574.00 | F124: 15% | G124: $6,437.60 | H124: $6,438.00 | I124: Service Fees Recurring | J124: Yearly | K124: Module | L124: Capacity up to 50 reporting vendors
A125: Sales Reporting Module - One-time Configuration | B125: B2G | C125: B2G-IMP-SAL | D125: $7,573.65 | E125: $7,574.00 | F125: 15% | G125: $6,437.60 | H125: $6,438.00 | I125: Implementation One-time | J125: One Time | K125: Module
A126: Spend Analysis Module - Annual Combined Fee | B126: B2G | C126: B2G-CMB-PAY | D126: $14,850.15 | E126: $14,851.00 | F126: 15% | G126: $12,622.63 | H126: $12,623.00 | I126: Combined Recurring | J126: Yearly | K126: Module | L126: Requires import interface setup (incl in product price); Capacity up to 100,000 payment records annually
A127: Spend Analysis Module - Annual Service Fee | B127: B2G | C127: B2G-SW-PAY | D127: $9,899.40 | E127: $9,900.00 | F127: 15% | G127: $8,414.49 | H127: $8,415.00 | I127: Service Fees Recurring | J127: Yearly | K127: Module | L127: Requires import interface setup (incl in product price); Capacity up to 100,000 payment records annually
A128: Spend Analysis Module - One-time Configuration | B128: B2G | C128: B2G-IMP-PAY | D128: $9,900.45 | E128: $9,901.00 | F128: 15% | G128: $8,415.38 | H128: $8,416.00 | I128: Implementation One-time | J128: One Time | K128: Module | L128: Requires import interface setup (incl in product price)
A129: SSO SAML 2.0 Integration - Annual Combined Fee | B129: B2G | C129: B2G-CMB-SAM | D129: $5,456.85 | E129: $5,457.00 | F129: 15% | G129: $4,638.32 | H129: $4,639.00 | I129: Combined Recurring | J129: Yearly | K129: Module | L129: SSO is for your Org staff members - not for vendors
A130: SSO SAML 2.0 Integration - Annual Service Fee | B130: B2G | C130: B2G-SW-SAM | D130: $3,638.25 | E130: $3,639.00 | F130: 15% | G130: $3,092.51 | H130: $3,093.00 | I130: Service Fees Recurring | J130: Yearly | K130: Module | L130: SSO is for your Org staff members - not for vendors
A131: SSO SAML 2.0 Integration - One-time Configuration | B131: B2G | C131: B2G-IMP-SAM | D131: $3,638.25 | E131: $3,639.00 | F131: 15% | G131: $3,092.51 | H131: $3,093.00 | I131: Implementation One-time | J131: One Time | K131: Module | L131: SSO is for your Org staff members - not for vendors
A132: Tier 2 Reporting Module - Annual Combined Fee | B132: B2G | C132: B2G-CMB-TR3 | D132: $10,120.95 | E132: $10,121.00 | F132: 15% | G132: $8,602.81 | H132: $8,603.00 | I132: Combined Recurring | J132: Yearly | K132: Module | L132: Capacity up to 200 agreements
A133: Tier 2 Reporting Module - Annual Service Fee | B133: B2G | C133: B2G-SW-TR2 | D133: $7,573.65 | E133: $7,574.00 | F133: 15% | G133: $6,437.60 | H133: $6,438.00 | I133: Service Fees Recurring | J133: Yearly | K133: Module | L133: Capacity up to 200 agreements
A134: Tier 2 Reporting Module - One-time Configuration | B134: B2G | C134: B2G-IMP-TR2 | D134: $7,573.65 | E134: $7,574.00 | F134: 15% | G134: $6,437.60 | H134: $6,438.00 | I134: Implementation One-time | J134: One Time | K134: Module
A135: Training Module - Annual Service Fee | B135: B2G | C135: B2G-SW-TMU | D135: $2,866.50 | E135: $2,867.00 | F135: 15% | G135: $2,436.53 | H135: $2,437.00 | I135: Service Fees Recurring | J135: Yearly | K135: Module | L135: Includes UT registration, all sessions access, standard hotel package, standard meals (flight not incl)
A136: Training Module - One-time Configuration | B136: B2G | C136: B2G-SW-TMO | D136: $2,866.50 | E136: $2,867.00 | F136: 15% | G136: $2,436.53 | H136: $2,437.00 | I136: Implementation One-time | J136: Yearly | K136: Module | L136: Includes UT registration, all sessions access, standard hotel package, standard meals (flight not incl), also includes training prep for custom onsite travel
A137: Training Services - Supplemental (per hour) | B137: B2G | C137: B2G-SRV-TRN | D137: $231.00 | E137: $231.00 | F137: 15% | G137: $196.35 | H137: $197.00 | I137: Implementation One-time | J137: Hourly | K137: Service
A138: Utilization Plans Module - Annual Combined Fee | B138: B2G | C138: B2G-CMB-UP | D138: $10,120.95 | E138: $10,121.00 | F138: 15% | G138: $8,602.81 | H138: $8,603.00 | I138: Combined Recurring | J138: Yearly | K138: Module | L138: Capacity up to 200 plan sets
A139: Utilization Plans Module - Annual Service Fee | B139: B2G | C139: B2G-SW-UP | D139: $7,573.65 | E139: $7,574.00 | F139: 15% | G139: $6,437.60 | H139: $6,438.00 | I139: Service Fees Recurring | J139: Yearly | K139: Module | L139: Capacity up to 200 plan sets
A140: Utilization Plans Module - One-time Configuration | B140: B2G | C140: B2G-IMP-UP | D140: $7,573.65 | E140: $7,574.00 | F140: 15% | G140: $6,437.60 | H140: $6,438.00 | I140: Implementation One-time | J140: One Time | K140: Module
A141: Utilization Plans HSP Add-on - Annual Service Fee | B141: B2G | C141: B2G-IMP-HSP | D141: $2,546.25 | E141: $2,547.00 | F141: 15% | G141: $2,164.31 | H141: $2,165.00 | I141: Service Fees Recurring | J141: Yearly | K141: Module
A142: Utilization Reporting Module - Annual Combined Fee | B142: B2G | C142: B2G-CMB-UR | D142: $10,120.95 | E142: $10,121.00 | F142: 15% | G142: $8,602.81 | H142: $8,603.00 | I142: Combined Recurring | J142: Yearly | K142: Module | L142: Capacity up to 25 agencies
A143: Utilization Reporting Module - Annual Service Fee | B143: B2G | C143: B2G-SW-UR | D143: $7,573.65 | E143: $7,574.00 | F143: 15% | G143: $6,437.60 | H143: $6,438.00 | I143: Service Fees Recurring | J143: Yearly | K143: Module | L143: Capacity up to 25 agencies
A144: Utilization Reporting Module - One-time Configuration | B144: B2G | C144: B2G-IMP-UR | D144: $7,573.65 | E144: $7,574.00 | F144: 15% | G144: $6,437.60 | H144: $6,438.00 | I144: Implementation One-time | J144: One Time | K144: Module
A145: Web Services - Standard APIs (frequent access service) - Annual Combined Fee | B145: B2G | C145: B2G-CMB-WEB | D145: $7,573.65 | E145: $7,574.00 | F145: 15% | G145: $6,437.60 | H145: $6,438.00 | I145: Combined Recurring | J145: Yearly | K145: Module
A146: Web Services - Standard APIs (frequent access service) - Annual Service Fee | B146: B2G | C146: B2G-SW-WEB | D146: $5,027.40 | E146: $5,028.00 | F146: 15% | G146: $4,273.29 | H146: $4,274.00 | I146: Service Fees Recurring | J146: Yearly | K146: Module
A147: Web Services - Standard APIs (frequent access service) - One-time Configuration Fee | B147: B2G | C147: B2G-IMP-WEB | D147: $5,027.40 | E147: $5,028.00 | F147: 15% | G147: $4,273.29 | H147: $4,274.00 | I147: Implementation One-time | J147: One Time | K147: Module
A148: Workforce Utilization Module - Annual Combined Fee | B148: B2G | C148: B2G-CMB-WF | D148: $10,120.95 | E148: $10,121.00 | F148: 15% | G148: $8,602.81 | H148: $8,603.00 | I148: Combined Recurring | J148: Yearly | K148: Module | L148: Capacity up to 200 monitored contracts
A149: Workforce Utilization Module - Annual Service Fee | B149: B2G | C149: B2G-SW-WF | D149: $7,573.65 | E149: $7,574.00 | F149: 15% | G149: $6,437.60 | H149: $6,438.00 | I149: Service Fees Recurring | J149: Yearly | K149: Module | L149: Capacity up to 200 monitored contracts
A150: Workforce Utilization Module - One-time Configuration | B150: B2G | C150: B2G-IMP-WF | D150: $7,573.65 | E150: $7,574.00 | F150: 15% | G150: $6,437.60 | H150: $6,438.00 | I150: Implementation One-time | J150: One Time | K150: Module
A151: BlackCat - Custom Development - Custom Feature, Component, Module, or System (per hour) | B151: BlackCat | C151: PBC-IMP-CDV | D151: $231.00 | E151: $231.00 | F151: 15% | G151: $196.35 | H151: $197.00 | I151: Implementation One-time | J151: One Time | K151: Service
A152: BlackCat - Custom Enhancement Services (per hour) | B152: BlackCat | C152: PBC-SRV-CES | D152: $231.00 | E152: $231.00 | F152: 15% | G152: $196.35 | H152: $197.00 | I152: Implementation One-time | J152: Hourly | K152: Service
A153: BlackCat - Custom Reporting Services (per hour) | B153: BlackCat | C153: PBC-SRV-CRS | D153: $231.00 | E153: $231.00 | F153: 15% | G153: $196.35 | H153: $197.00 | I153: Implementation One-time | J153: Hourly | K153: Service
A154: BlackCat - Data Entry Services (per hour) | B154: BlackCat | C154: PBC-SRV-DES | D154: $231.00 | E154: $231.00 | F154: 15% | G154: $196.35 | H154: $197.00 | I154: Implementation One-time | J154: Hourly | K154: Service
A155: BlackCat - Data Integration Services (per hour) | B155: BlackCat | C155: PBC-SRV-DIS | D155: $231.00 | E155: $231.00 | F155: 15% | G155: $196.35 | H155: $197.00 | I155: Implementation One-time | J155: Hourly | K155: Service
A156: BlackCat - Data Migration Services (per hour) | B156: BlackCat | C156: PBC-SRV-DMS | D156: $231.00 | E156: $231.00 | F156: 15% | G156: $196.35 | H156: $197.00 | I156: Implementation One-time | J156: Hourly | K156: Service
A157: BlackCat - Electronic Document Management System Integration (per hour) | B157: BlackCat | C157: PBS-SRV-EDM | D157: $231.00 | E157: $231.00 | F157: 15% | G157: $196.35 | H157: $197.00 | I157: Implementation One-time | J157: Hourly | K157: Service
A158: BlackCat - Non-standard Implementation Assistance (per hour) | B158: BlackCat | C158: PBC-IMP-IMA | D158: $231.00 | E158: $231.00 | F158: 15% | G158: $196.35 | H158: $197.00 | I158: Implementation One-time | J158: One Time | K158: Service
A159: BlackCat - Program Consultation and Process Analysis - (per hour) | B159: BlackCat | C159: PBC-SRV-PRA | D159: $231.00 | E159: $231.00 | F159: 15% | G159: $196.35 | H159: $197.00 | I159: Implementation One-time | J159: Hourly | K159: Service
A160: BlackCat - Project Management Services - Beyond Standard Implementation (per hour) | B160: BlackCat | C160: PBC-SRV-PMS | D160: $231.00 | E160: $231.00 | F160: 15% | G160: $196.35 | H160: $197.00 | I160: Implementation One-time | J160: Hourly | K160: Service
A161: BlackCat - Supplemental Training Services (per hour) | B161: BlackCat | C161: PBC-SRV-STR | D161: $231.00 | E161: $231.00 | F161: 15% | G161: $196.35 | H161: $197.00 | I161: Implementation One-time | J161: Hourly | K161: Service
A162: BlackCat - Self-Registration | B162: BlackCat | C162: PBC-CMB-SRG | D162: $6,372.45 | E162: $6,373.00 | F162: 15% | G162: $5,416.58 | H162: $5,417.00 | I162: Combined Recurring | J162: Yearly | K162: Module
A163: BlackCat - eSignature Component Using Docusign - Tier 1 | B163: BlackCat | C163: PBC-CMB-ES1 | D163: $7,639.80 | E163: $7,640.00 | F163: 15% | G163: $6,493.83 | H163: $6,494.00 | I163: Combined Recurring | J163: Yearly | K163: Module | L163: Implementation/maintenance + [1 to 700 envelopes]
A164: BlackCat - eSignature Component Using Docusign - Tier 2 | B164: BlackCat | C164: PBC-CMB-ES2 | D164: $15,280.65 | E164: $15,281.00 | F164: 15% | G164: $12,988.55 | H164: $12,989.00 | I164: Combined Recurring | J164: Yearly | K164: Module | L164: Implementation/maintenance + [701 to 1500 envelopes]
A165: BlackCat - eSignature Component Using Docusign - Tier 3 | B165: BlackCat | C165: PBC-CMB-ES3 | D165: $20,374.20 | E165: $20,375.00 | F165: 15% | G165: $17,318.07 | H165: $17,319.00 | I165: Combined Recurring | J165: Yearly | K165: Module | L165: Implementation/maintenance + [> 1500 envelopes]
A166: BlackCat - eSignature Component Using Client Service - Tier 1 | B166: BlackCat | C166: PBC-CMB-EC1 | D166: $6,372.45 | E166: $6,373.00 | F166: 15% | G166: =SUM(D166*0.85) -> $5,416.58 | H166: $5,417.00 | I166: Combined Recurring | J166: Yearly | K166: Module | L166: Integrate Client's eSignature Service + [Manage 1 to 12 signature workflows]
A167: BlackCat - eSignature Component Using Client Service - Tier 2 | B167: BlackCat | C167: PBC-CMB-EC2 | D167: $7,639.80 | E167: $7,640.00 | F167: 15% | G167: $6,493.83 | H167: $6,494.00 | I167: Combined Recurring | J167: Yearly | K167: Module | L167: Integrate Client's eSignature Service + [Manage 13 to 24 signature workflows]
A168: BlackCat - eSignature Component Using Client Service - Tier 3 | B168: BlackCat | C168: PBC-CMB-EC3 | D168: $15,280.65 | E168: $15,281.00 | F168: 15% | G168: $12,988.55 | H168: $12,989.00 | I168: Combined Recurring | J168: Yearly | K168: Module | L168: Integrate Client's eSignature Service + [Manage > 24 signature workflows]
A169: BlackCat - Establish & Maintain Up to 5 Data Endpoints (for Client's Power-BI) | B169: BlackCat | D169: $6,500.00 | E169: $6,500.00 | F169: 15% | G169: $5,525.00 | H169: $5,525.00 | I169: Combined Recurring | J169: Yearly | K169: Module
A170: BlackCat - Single Sign-On (Per login provider using Open ID Connect) | B170: BlackCat | C170: PBC-CMB-SO1 | D170: $6,306.30 | E170: $6,307.00 | F170: 15% | G170: $5,360.36 | H170: $5,361.00 | I170: Combined Recurring | J170: Yearly | K170: Module
A171: BlackCat - Single Sign-On (Per login provider using ADFS and SAML technology) | B171: BlackCat | C171: PBC-CMB-SO2 | D171: $8,681.40 | E171: $8,682.00 | F171: 15% | G171: $7,379.19 | H171: $7,380.00 | I171: Combined Recurring | J171: Yearly | K171: Module
A172: BlackCat - Web Services - Custom APIs - Annual Fee | B172: BlackCat | C172: PBC-CMB-WEB | D172: $7,573.65 | E172: $7,574.00 | F172: 15% | G172: $6,437.60 | H172: $6,438.00 | I172: Combined Recurring | J172: Yearly | K172: Module
A173: BlackCat Aviation - Air Service Module | B173: BlackCat | C173: PBC-CMB-AAS | D173: $34,121.85 | E173: $34,122.00 | F173: 15% | G173: $29,003.57 | H173: $29,004.00 | I173: Combined Recurring | J173: Yearly | K173: Module
A174: BlackCat Aviation - Aircraft Registration (Aircraft Only) | B174: BlackCat | C174: PBC-CMB-AOR | D174: $75,134.85 | E174: $75,135.00 | F174: 15% | G174: =SUM(D174*0.85) -> $63,864.62 | H174: $63,865.00 | I174: Combined Recurring | J174: Yearly | K174: Module
A175: BlackCat Aviation - Aircraft Registration (Aircraft & Drones) | B175: BlackCat | D175: $123,500.00 | E175: $123,500.00 | F175: 15% | G175: $104,975.00 | H175: $104,975.00 | I175: Combined Recurring | J175: Yearly | K175: Module
A176: BlackCat Aviation - Airport Inspection Module | B176: BlackCat | C176: PBC-CMB-AIM | D176: $25,203.15 | E176: $25,204.00 | F176: 15% | G176: $21,422.68 | H176: $21,423.00 | I176: Combined Recurring | J176: Yearly | K176: Module
A177: BlackCat Aviation - Core System - Tier 1 | B177: BlackCat | C177: PBC-CMB-AC1 | D177: $136,158.75 | E177: $136,159.00 | F177: 15% | G177: $115,734.94 | H177: $115,735.00 | I177: Combined Recurring | J177: Yearly | K177: Module
A178: BlackCat Aviation - Core System - Tier 2 - Additional Capacity | B178: BlackCat | C178: PBC-CMB-AC1 | D178: $194,481.00 | E178: $194,481.00 | F178: 15% | G178: $165,308.85 | H178: $165,309.00 | I178: Combined Recurring | J178: Yearly | K178: Module
A179: BlackCat Aviation - Disaster Preparedness Module (Includes FAA Integration Only) | B179: BlackCat | C179: PBC-CMB-DPF | D179: $16,978.50 | E179: $16,979.00 | F179: 15% | G179: $14,431.73 | H179: $14,432.00 | I179: Combined Recurring | J179: Yearly | K179: Module
A180: BlackCat Aviation - State Integration for the Disaster Preparedness Module (per hour) | B180: BlackCat | C180: PBC-CMB-DPS | D180: $231.00 | E180: $231.00 | F180: 15% | G180: $196.35 | H180: $197.00 | I180: Combined Recurring | J180: Yearly | K180: Module
A181: BlackCat Aviation - Gaming Module | B181: BlackCat | C181: PBC-CMB-AGM | D181: $17,363.85 | E181: $17,364.00 | F181: 15% | G181: $14,759.27 | H181: $14,760.00 | I181: Combined Recurring | J181: Yearly | K181: Module
A182: BlackCat Aviation - Non-Primary Entitlement (NPE) Module | B182: BlackCat | C182: PBC-CMB-NPE | D182: $39,690.00 | E182: $39,690.00 | F182: 15% | G182: $33,736.50 | H182: $33,737.00 | I182: Combined Recurring | J182: Yearly | K182: Module
A183: BlackCat Aviation - Quality Assurance Review Module | B183: BlackCat | C183: PBC-CMB-QAR | D183: $25,467.75 | E183: $25,468.00 | F183: 15% | G183: $21,647.59 | H183: $21,648.00 | I183: Combined Recurring | J183: Yearly | K183: Module
A184: BlackCat Aviation - System Planning Module | B184: BlackCat | C184: PBC-CMB-ASP | D184: $15,280.65 | E184: $15,281.00 | F184: 15% | G184: $12,988.55 | H184: $12,989.00 | I184: Combined Recurring | J184: Yearly | K184: Module
A185: BlackCat Flex - Core System - Tier 1 | B185: BlackCat | C185: PBC-CMB-FC1 | D185: $82,950.00 | E185: $82,950.00 | F185: 15% | G185: $70,507.50 | H185: $70,508.00 | I185: Combined Recurring | J185: Yearly | K185: Module
A186: BlackCat Flex - Core System - Tier 2 | B186: BlackCat | C186: PBC-CMB-FC2 | D186: $126,070.35 | E186: $126,071.00 | F186: 15% | G186: $107,159.80 | H186: $107,160.00 | I186: Combined Recurring | J186: Yearly | K186: Module
A187: BlackCat Flex - Core System - Tier 3 | B187: BlackCat | C187: PBC-CMB-FC3 | D187: $189,740.25 | E187: $189,741.00 | F187: 15% | G187: $161,279.21 | H187: $161,280.00 | I187: Combined Recurring | J187: Yearly | K187: Module
A188: BlackCat Flex - Additional Functional Area | B188: BlackCat | C188: PBC-CMB-AFA | D188: $9,746.10 | E188: $9,747.00 | F188: 15% | G188: $8,284.19 | H188: $8,285.00 | I188: Combined Recurring | J188: Yearly | K188: Module
A189: BlackCat Flex - Compliance / Oversight | B189: BlackCat | C189: PBC-CMB-FO1 | D189: $15,280.65 | E189: $15,281.00 | F189: 15% | G189: $12,988.55 | H189: $12,989.00 | I189: Combined Recurring | J189: Yearly | K189: Module
A190: BlackCat Flex - Inventory Module | B190: BlackCat | C190: PBC-CMB-FIM | D190: $17,363.85 | E190: $17,364.00 | F190: 15% | G190: $14,759.27 | H190: $14,760.00 | I190: Combined Recurring | J190: Yearly | K190: Module
A191: BlackCat Flex - State Safety Oversight | B191: BlackCat | C191: PBC-CMB-SSF | D191: $26,046.30 | E191: $26,047.00 | F191: 15% | G191: $22,139.36 | H191: $22,140.00 | I191: Combined Recurring | J191: Yearly | K191: Module
A192: BlackCat Flex - Status Reporting Module | B192: BlackCat | C192: PBC-CMB-FSR | D192: $12,733.35 | E192: $12,734.00 | F192: 15% | G192: $10,823.35 | H192: $10,824.00 | I192: Combined Recurring | J192: Yearly | K192: Module
A193: BlackCat Rail - Agreements Module | B193: BlackCat | C193: PBC-CMB-RAM | D193: $11,466.00 | E193: $11,466.00 | F193: 15% | G193: $9,746.10 | H193: $9,747.00 | I193: Combined Recurring | J193: Yearly | K193: Module
A194: BlackCat Rail - Core System - Single Tier | B194: BlackCat | C194: PBC-CMB-RCS | D194: $62,401.50 | E194: $62,402.00 | F194: 15% | G194: =SUM(D194*0.85) -> $53,041.28 | H194: $53,042.00 | I194: Combined Recurring | J194: Yearly | K194: Module
A195: BlackCat Rail - Projects Module | B195: BlackCat | C195: PBC-CMB-RPM | D195: $13,891.50 | E195: $13,892.00 | F195: 15% | G195: $11,807.78 | H195: $11,808.00 | I195: Combined Recurring | J195: Yearly | K195: Module
A196: BlackCat Transit - Auto Registration / LOI | B196: BlackCat | C196: PBC-CMB-TAR | D196: $6,372.45 | E196: $6,373.00 | F196: 15% | G196: $5,416.58 | H196: $5,417.00 | I196: Combined Recurring | J196: Yearly | K196: Module
A197: BlackCat Transit - Compliance Oversight | B197: BlackCat | C197: PBC-CMB-TO1 | D197: $15,280.65 | E197: $15,281.00 | F197: 15% | G197: $12,988.55 | H197: $12,989.00 | I197: Combined Recurring | J197: Yearly | K197: Module
A198: BlackCat Transit - Compliance Oversight (Standalone) | B198: BlackCat | C198: PBC-CMB-TO2 | D198: $47,120.85 | E198: $47,121.00 | F198: 15% | G198: $40,052.72 | H198: $40,053.00 | I198: Combined Recurring | J198: Yearly | K198: Module
A199: BlackCat Transit - Consolidated Application Module | B199: BlackCat | C199: PBC-CMB-COA | D199: $11,459.70 | E199: $11,460.00 | F199: 15% | G199: $9,740.75 | H199: $9,741.00 | I199: Combined Recurring | J199: Yearly | K199: Module
A200: BlackCat Transit - Core System - Tier 1 | B200: BlackCat | C200: PBC-CMB-TC1 | D200: $156,626.40 | E200: $156,627.00 | F200: 15% | G200: $133,132.44 | H200: $133,133.00 | I200: Combined Recurring | J200: Yearly | K200: Module
... 104 more rows
